[Event "7th Sharjah Masters 2024"]
[Site "Sharjah"]
[Date "2024.05.19"]
[Round "6.7"]
[White "Sindarov, Javokhir"]
[Black "Fedoseev, Vladimir"]
[Result "1-0"]
[ECO "C49"]
[WhiteElo "2684"]
[BlackElo "2702"]
[Annotator "TA"]
[PlyCount "84"]
[EventDate "2024.05.13"]
[EventType "swiss"]
[EventCountry "UAE"]
[SourceTitle "playchess.com"]
[Source "ChessBase"]
[SourceQuality "1"]
[TimeControl "5400+30"]

{[%evp 11,84,6,10,0,12,0,20,-4,0,0,0,0,16,24,31,0,16,16,97,91,258,172,128,161,914,389,494,494,398,380,478,509,481,495,485,545,545,563,550,505,617,394,397,360,379,374,387,355,420,425,405,412,410,416,465,349,355,354,399,397,409,418,652,679,695,668,751,751,1406,1435,1281,1405,1250,1229,914]} 1. e4 {[%emt 1:31:00]} e5 {[%emt 1:31:00]} 2. Nf3 {[%emt 0:00:30]} Nf6 {[%emt 0:00:30]} 3. Nc3 {[%emt 0:00:30]} Nc6 {[%emt 0:00:30]} 4. Bb5 {[%emt 0:00:30]} Bb4 {[%emt 0:00:30]} 5. O-O {[%emt 0:00:30]} O-O {[%emt 0:00:30]} 6. d3 {[%emt 0:00:30]} Re8 {[%emt 0:00:30]} 7. Nd5 {[%emt 0:00:30]} Nxd5 {[%emt 0:00:30]} 8. exd5 {[%emt 0:00:30]} a6 {[%emt 0:00:30]} 9. Bc4 {[%emt 0:00:30] The position is equal.} Na5 {[%emt 0:00:30][%cal Bc6a5,Ba5c4,Bc4b6,Bb6d5][%mdl 32]} 10. a3 {[%emt 0:00:30]} Nxc4 {[%emt 0:00:30]} 11. axb4 {[%emt 0:00:30]} Nb6 {[%emt 0:00:30] [#]} 12. d6 $1 {[%emt 0:00:30]} Nd5 13. d4 {[%emt 0:00:30]} e4 {[%emt 0:01:00]} (13... Nxb4 $6 14. Bg5 (14. dxe5 h6 $16) (14. Nxe5 cxd6 15. Nxf7 Qf6 $16) 14... f6 15. Bd2 $16) 14. Ne5 {[%emt 0:00:30][%cal Bf3e5,Be5g4,Bg4h6][%mdl 32]} Qh4 {[%emt 0:00:30] Inhibits Qh5.} (14... cxd6 $11 15. Nxf7 Qe7) 15. Ra3 $1 $16 {[%emt 0:00:30] And now Rh3 would win.} Qf6 $2 {[%emt 0:00:30] Loses the game.} (15... cxd6 $16 16. Nxf7 Qe7 (16... Kxf7 $2 17. Rh3 $18)) 16. Qh5 {[%emt 0:00:30] Rh3 would now be deadly. Black is weak on the dark squares} g6 {[%emt 0:00:30] [#]} 17. Rg3 $1 {[%emt 0:00:30] White is more active.} (17. Nxg6 hxg6 18. Qxd5 Qxd6 19. Qxd6 cxd6) 17... Qe6 {[%emt 0:00:30] Dodges Ng4} (17... Kh8 18. Nxg6+ fxg6 19. Qxd5 Qxd6 20. Qxd6 cxd6) 18. Qh4 {[%emt 0:00:30]} (18. f4 $142 {Threatens to win with f5.} Nf6 19. Qd1) 18... cxd6 {[%emt 0:00:30]} 19. Ng4 {[%emt 0:00:30] c4 is the strong threat.} b5 {[%emt 0:00:30][%cal Oc8b7] [#]} 20. b3 $1 {[%emt 0:00:30] aiming for c4.} f5 {[%emt 0:00:30]} 21. Nh6+ {[%emt 0:00:30]} Kg7 {[%emt 0:00:30]} 22. c4 {[%emt 0:00:30]} Bb7 23. cxd5 {[%emt 0:00:30]} Bxd5 24. Bf4 {[%emt 0:00:30]} Rf8 {[%emt 0:01:30]} 25. Rh3 {[%emt 0:00:30]} Rac8 {[%emt 0:00:30]} 26. g4 {[%emt 0:00:30]} fxg4 {[%emt 0:00:30]} 27. Nxg4 {[%emt 0:00:30]} h5 {[%emt 0:00:30]} 28. Bh6+ {[%emt 0:00:30]} Kg8 {[%emt 0:00:30]} 29. Ne3 {[%emt 0:00:30]} Rf7 {[%emt 0:00:30]} 30. Rg3 {[%emt 0:00:30]} Kh7 {[%emt 0:00:30]} 31. Nxd5 {[%emt 0:00:30]} (31. Qg5 Re8 32. Ra1 (32. Nxd5 Rf5 $18) 32... Bb7 $18) 31... Qxd5 {[%emt 0:00:30]} 32. Be3 {[%emt 0:00:30]} Rc3 {[%emt 0:00:30]} 33. Qg5 {[%emt 0:00:30]} Qxg5 {[%emt 0:00:30]} 34. Bxg5 {[%emt 0:00:30]} Rff3 {[%emt 0:00:30]} 35. Ra1 {[%emt 0:00:30]} Rxb3 {[%emt 0:00:30]} 36. Rxa6 {[%emt 0:00:30]} Rb2 {[%emt 0:00:30]} (36... d5 $142 37. Rd6 Rxb4 38. Rxd7+ (38. Rxd5 Rb1+ 39. Kg2 Rf7 $18) 38... Kg8 39. Rxd5 Rxg3+ 40. hxg3 Rb1+ 41. Kg2 b4) 37. Rxf3 $18 {[%emt 0:00:30] White is clearly winning.} exf3 {[%emt 0:00:30] KRB-KR} 38. h4 {[%emt 0:00:30]} (38. Rxd6 $2 {leads to mate.} Rb1+) 38... Rxb4 {[%emt 0:00:30]} 39. Rxd6 {[%emt 0:00:30]} Rc4 {[%emt 0:00:30]} 40. Rxd7+ {[%emt 0:00:30]} Kg8 41. Kh2 {[%emt 0:00:30]} b4 {[%emt 0:01:00]} 42. Be3 {[%emt 0:00:30]} b3 {[%emt 0:00:30] Weighted Error Value: White=0.29 (precise) /Black=0.39.  Loses game:     	---       	Black=1      Mistake:       	White=1     	Black=3      Inaccurate:     	White=2     	---        OK:         	White=17    	Black=11     Best:        	White=1     	Black=4      Strong:       	White=3     	---} 1-0

[Event "7th Sharjah Masters 2024"]
[Site "Sharjah"]
[Date "2024.05.19"]
[Round "6.8"]
[White "Maghsoodloo, Parham"]
[Black "Theodorou, Nikolas"]
[Result "1-0"]
[ECO "E71"]
[WhiteElo "2733"]
[BlackElo "2617"]
[Annotator "TA"]
[PlyCount "100"]
[EventDate "2024.05.13"]
[EventType "swiss"]
[EventCountry "UAE"]
[SourceTitle "playchess.com"]
[Source "ChessBase"]
[SourceQuality "1"]
[TimeControl "5400+30"]

{[%evp 40,100,191,206,208,189,195,176,188,201,197,185,185,181,185,191,216,202,205,217,208,203,211,213,206,202,235,250,257,258,275,263,376,367,537,541,648,630,953,907,970,962,1521,681,1669,1435,1652,1414,29956,4578,29953,29962,29963,29966,29970,29968,29975,29976,29980,29981,29981,29982,29982]} 1. d4 {[%emt 1:31:00]} Nf6 {[%emt 1:31:00]} 2. c4 {[%emt 0:00:30]} g6 {[%emt 0:00:30]} 3. Nc3 {[%emt 0:00:30]} Bg7 {[%emt 0:00:30]} 4. e4 {[%emt 0:00:30]} d6 {[%emt 0:00:30]} 5. h3 {[%emt 0:00:30]} O-O {[%emt 0:00:30]} 6. Be3 {[%emt 0:00:30]} Nc6 {[%emt 0:00:30] E71: King's Indian: 4 e4 d6 5 h3.} 7. d5 {[%emt 0:00:30]} Ne5 {[%emt 0:00:30]} 8. Qc2 $5 {[%emt 0:00:30][%mdl 4] An interesting side line.} e6 {[%emt 0:00:30]} 9. f4 {[%emt 0:00:30]} Ned7 {[%emt 0:00:30]} 10. dxe6 {[%emt 0:00:30]} fxe6 {[%emt 0:00:30]} 11. g4 {[%emt 0:00:30]} Qe7 $146 {[%emt 0:00:30]} ({Predecessor:} 11... b5 12. cxb5 Bb7 13. Nf3 Qe7 14. Bg2 a6 15. bxa6 Bxa6 16. Nd4 Nc5 17. O-O-O Nfd7 {1-0 Erigaisi,A (2616)-Mamedov,R (2678) Lindores Abbey Blitz Tal Memorial 2021 (8.1)}) 12. Nge2 {[%emt 0:00:30]} Nb6 {[%emt 0:00:30]} 13. b3 {[%emt 0:00:30]} d5 {[%emt 0:00:30]} 14. e5 {[%emt 0:00:30]} Nfd7 {[%emt 0:00:30]} 15. Bg2 {[%emt 0:00:30]} Nxe5 {[%emt 0:00:30]} 16. fxe5 {[%emt 0:00:30]} Qh4+ {[%emt 0:00:30]} 17. Kd2 {[%emt 0:00:30]} Bh6 {[%emt 0:00:30]} 18. Qd3 {[%emt 0:00:30]} dxc4 {[%emt 0:00:30]} 19. Qe4 {[%emt 0:00:30]} Nd5 {[%emt 0:00:30]} 20. Nxd5 {[%emt 0:00:30]} exd5 {[%emt 0:00:30]} 21. Qd4 {[%emt 0:00:30]} Be6 {[%emt 0:00:30]} 22. g5 {[%emt 0:00:30]} (22. Bxd5 $2 Bxe3+ 23. Qxe3 Bxd5 $19) 22... Bxg5 {[%emt 0:00:30]} 23. Qxh4 {[%emt 0:00:30]} (23. Bxd5 $2 Bxe3+ 24. Kxe3 Qg5+ (24... Qf2+ $2 25. Kd2 $19) 25. Nf4 Qg3+ 26. Ke2 Rxf4 $19) 23... Bxh4 {[%emt 0:00:30]} 24. Nd4 {[%emt 0:00:30]} Rfe8 {[%emt 0:00:30]} 25. bxc4 {[%emt 0:00:30]} dxc4 {[%emt 0:00:30]} 26. Bxb7 {[%emt 0:00:30]} Rad8 {[%emt 0:00:30] [#]} 27. Ke2 $1 {[%emt 0:00:30]} Bd5 {[%emt 0:00:30]} 28. Bxd5+ {[%emt 0:00:30]} Rxd5 {[%emt 0:00:30]} 29. Nf3 {[%emt 0:00:30]} Bg3 {[%emt 0:00:30] [#]} 30. Rhd1 $1 {[%emt 0:00:30]} (30. Bxa7 Bxe5 31. Nxe5 Rexe5+ 32. Kf1 Rf5+ 33. Ke2 Rfe5+ 34. Kf2 Rf5+ 35. Kg2 Rd2+ 36. Kg3 Rd3+ 37. Kh2 Rd2+ 38. Kg3 Rd3+ 39. Kh2 Rd2+ 40. Kg1 Rg5+ 41. Kf1 Rf5+ 42. Kg1 Ra5 $11) 30... Bxe5 {[%emt 0:00:30]} 31. Rxd5 {[%emt 0:00:30]} Bxa1 {[%emt 0:00:30]} 32. Rc5 {[%emt 0:00:30]} Rb8 {[%emt 0:00:30]} 33. a4 {[%emt 0:00:30]} (33. Rxc7 Rb2+ 34. Kd1 Rxa2) 33... Rb4 {[%emt 0:00:30]} 34. a5 {[%emt 0:00:30]} (34. Rxc7 a5 35. Bh6 Bf6) 34... a6 {[%emt 0:00:30]} 35. Nd2 {[%emt 0:00:30]} c3 {[%emt 0:00:30]} (35... Rb2 $142 36. Bd4 (36. Rxc7 Ra2 $18) (36. Rxc4 Rb5 $18) 36... Ra2) 36. Nc4 $18 {[%emt 0:00:30]} Rb2+ {[%emt 0:00:30]} (36... c2 $142 37. Kd2 (37. Rxc7 Rb3 $18) 37... Kf7 38. Rxc7+ (38. Kxc2 Ke6 $18) 38... Ke6 39. Kxc2 Kd5) 37. Kd3 $18 {[%emt 0:00:30]} (37. Nxb2 $2 cxb2 $19) 37... Rh2 {[%emt 0:00:30]} 38. Rc6 {[%emt 0:00:30]} c2 {[%emt 0:00:30]} 39. Rxa6 {[%emt 0:00:30]} c5 {[%emt 0:00:30]} 40. Ra8+ {[%emt 0:00:30]} (40. Bxc5 c1=Q (40... c1=R $2 41. Ra8+ Kg7 42. Ra7+ Kf6 43. Rxh7 $19) 41. Ra8+ Kf7 42. Ra7+ Ke6 43. Re7+ Kf6 44. Bd4+ Kxe7 45. Bxa1 Rxh3+ 46. Kd4 Rh4+ (46... Qxa1+ 47. Kd5 Qc3 48. Kc5 Rh5+ 49. Kb6 Qxc4 50. a6 Rb5+ 51. Ka7 Qc7+ 52. Ka8 Qb8#) 47. Kd3 Qxc4+ (47... Rxc4 48. Bg7 Qc2+ 49. Ke3 Qb3+ 50. Bc3 Rxc3+ 51. Ke4 Rc4+ 52. Ke5 Qb5#) 48. Kd2 Re4) 40... Kf7 {[%emt 0:00:30]} 41. a6 {[%emt 0:00:30]} (41. Bxc5 c1=Q (41... c1=R 42. Nd6+ Ke7 43. Ne4+ Kd7 44. Ra7+ Kc6 45. Rxh7 $15) 42. Rf8+ Kg7 43. Bd4+ Kxf8 44. Bxa1 Rxh3+ 45. Kd4 Rh4+ (45... Qxa1+ {is a self mate.} 46. Kc5 Qc3 47. a6 Rh5+ 48. Kb6 Qxc4 49. Ka7 Qc7+ 50. Ka8 Rb5 51. a7 Qd8#) 46. Kd5 Qxc4+ (46... Qxa1 47. Nd6 Rd4+ 48. Kc6 Qc3+ 49. Kb6 Rxd6+ 50. Kb7 Qc6+ 51. Kb8 Rd8+ 52. Ka7 Ra8#) 47. Kd6 Qa6+ 48. Kd7 Qb5+ (48... Qxa5 {leads to mate.} 49. Bh8 Rc4 50. Bg7+ Kf7 51. Be5 Qb5+ 52. Kd8 Qe8#) 49. Kd6 Rc4 (49... Qxa5 50. Be5 Rh5 51. Kd7 Rxe5 52. Kd6 Qc5+ 53. Kd7 Re7+ 54. Kd8 Qc7#) 50. Ke6 Rc6+ 51. Kd7 Qd5#) 41... Bd4 {[%emt 0:00:30]} 42. Bd2 {[%emt 0:00:30]} c1=Q {[%emt 0:00:30]} 43. Bxc1 {[%emt 0:00:30]} Rxh3+ {[%emt 0:00:30]} 44. Be3 {[%emt 0:00:30]} Bxe3 {[%emt 0:00:30]} 45. Nxe3 {[%emt 0:00:30]} c4+ {[%emt 0:00:30]} 46. Kxc4 {[%emt 0:00:30]} Rxe3 {[%emt 0:00:30]} 47. a7 {[%emt 0:00:30]} Re7 {[%emt 0:00:30]} 48. Rh8 {[%emt 0:00:30]} Rc7+ {[%emt 0:00:30]} 49. Kd4 {[%emt 0:00:30]} Rd7+ {[%emt 0:00:30]} 50. Ke4 {[%emt 0:00:30]} Re7+ {[%emt 0:00:30]} 1-0

[Event "7th Sharjah Masters 2024"]
[Site "Sharjah"]
[Date "2024.05.19"]
[Round "6.9"]
[White "Sevian, Samuel"]
[Black "Pranav, V."]
[Result "0-1"]
[ECO "C24"]
[WhiteElo "2699"]
[BlackElo "2587"]
[Annotator "TA"]
[PlyCount "138"]
[EventDate "2024.05.13"]
[EventType "swiss"]
[EventCountry "UAE"]
[SourceTitle "playchess.com"]
[Source "ChessBase"]
[SourceQuality "1"]
[TimeControl "5400+30"]

{[%evp 58,138,0,-95,-86,-93,-86,-100,-101,-101,-101,-93,-90,-93,-93,-93,-82,-91,-89,-219,-214,-217,-214,-212,-197,-215,-172,-178,-203,-265,-196,-762,-167,-180,-160,-182,-206,-437,0,-223,-203,-499,-474,-1094,-1091,-1036,-935,-1097,-1016,-925,-444,-908,-887,-1409,-1343,-8508,-7702,-7200,-5743,-5110,-5134,-4856,-4644,-4614,-4610,-1759,-1603,-1569,-935,-29989,-29990,-29990,-29991,-29991,-29992,-29992,-29993,-29993,-29994,-29994,-29986,-29996,-29997]} 1. e4 {[%emt 1:31:00]} e5 {[%emt 1:31:00]} 2. Nf3 {[%emt 0:00:30]} Nc6 {[%emt 0:00:30]} 3. Bc4 {[%emt 0:00:30]} Nf6 {[%emt 0:00:30]} 4. d3 {[%emt 0:00:30]} d5 {[%emt 0:00:30]} 5. exd5 {[%emt 0:00:30]} Nxd5 {[%emt 0:00:30]} 6. O-O {[%emt 0:00:30]} Nb6 {[%emt 0:00:30]} 7. Bb3 {[%emt 0:00:30]} Be7 {[%emt 0:00:30]} 8. Re1 {[%emt 0:00:30]} Bg4 {[%emt 0:00:30]} 9. Nbd2 {[%emt 0:00:30]} f6 {[%emt 0:00:30]} 10. h3 {[%emt 0:00:30]} Bh5 {[%emt 0:00:30]} 11. Ne4 {[%emt 0:00:30]} Nd4 {[%emt 0:00:30]} 12. g4 {[%emt 0:00:30]} Nxb3 {[%emt 0:00:30]} 13. axb3 {[%emt 0:00:30]} Bg6 {[%emt 0:00:30]} 14. Nh4 {[%emt 0:00:30]} Qd7 {[%emt 0:00:30]} 15. Qf3 {[%emt 0:00:30]} a6 {[%emt 0:00:30]} 16. Be3 {[%emt 0:00:30]} Nd5 {[%emt 0:00:30]} 17. Bd2 {[%emt 0:00:30]} O-O-O {[%emt 0:00:30]} 18. Ng3 {[%emt 0:00:30]} Kb8 {[%emt 0:00:30]} 19. Nhf5 {[%emt 0:00:30]} Bc5 {[%emt 0:00:30]} 20. Ra4 {[%emt 0:00:30]} h5 {[%emt 0:00:30]} 21. gxh5 {[%emt 0:00:30]} Bxf5 {[%emt 0:00:30]} 22. Nxf5 {[%emt 0:00:30]} Nf4 {[%emt 0:00:30]} 23. Rxf4 {[%emt 0:00:30]} exf4 {[%emt 0:00:30]} 24. Bxf4 {[%emt 0:00:30]} Rdg8 {[%emt 0:00:30]} 25. d4 {[%emt 0:00:30]} Bb4 {[%emt 0:00:30]} 26. c3 {[%emt 0:00:30]} g6 {[%emt 0:00:30]} 27. Nh6 {[%emt 0:00:30]} Rc8 {[%emt 0:00:30]} 28. hxg6 {[%emt 0:00:30]} Bd6 {[%emt 0:00:30]} 29. Re3 {[%emt 0:00:30]} Qg7 {[%emt 0:00:30]} (29... Bxf4 $1 $15 30. Qxf4) 30. Ng4 {[%emt 0:00:30]} (30. Qg4 $11 Rxh6 (30... Bxf4 31. Nf5 $16) 31. Bxh6 Qxh6 32. h4) 30... Bxf4 $1 $17 {[%emt 0:00:30]} 31. Qxf4 {[%emt 0:00:30]} Qxg6 {[%emt 0:00:30]} 32. Qxf6 {[%emt 0:00:30]} Qb1+ 33. Kg2 {[%emt 0:00:30]} Qxb2 {[%emt 0:01:00]} (33... Rcf8 {is interesting.} 34. Qe5 Qxb2 35. b4 Rhg8) 34. b4 {[%emt 0:00:30]} Rhg8 {[%emt 0:00:30]} 35. Qe6 {[%emt 0:00:30]} Rcf8 {[%emt 0:00:30]} 36. Rf3 {[%emt 0:00:30]} Re8 {[%emt 0:00:30]} 37. Qd5 {[%emt 0:00:30]} Qc2 {[%emt 0:00:30]} 38. b5 {[%emt 0:00:30] [#]} (38. Kh2 $17) 38... a5 $1 $19 {[%emt 0:00:30]} 39. Kh2 {[%emt 0:00:30]} Rd8 {[%emt 0:00:30]} 40. Qc5 {[%emt 0:00:30]} b6 {[%emt 0:00:30]} 41. Qc4 {[%emt 0:00:30]} Qc1 {[%emt 0:00:30]} 42. Rf7 {[%emt 0:00:30]} Rc8 {[%emt 0:00:30]} 43. d5 {[%emt 0:00:30]} Qd1 {[%emt 0:00:30]} (43... Rgf8 44. Re7 Qd1 45. Rh7 $19) 44. Rd7 $2 {[%emt 0:00:30]} (44. Rf4) 44... Rg6 $2 {[%emt 0:00:30]} (44... Qf3 {( -> ...Rh8)} 45. d6 Rh8 (45... cxd6 $2 46. Qd4 $19) 46. dxc7+ Ka7) 45. Qe4 $19 {[%emt 0:00:30] [#]} Rd6 $1 {[%emt 0:00:30]} (45... Rcg8 46. Qf4 Rc8 47. Qe4 $15) 46. Rxd6 {[%emt 0:00:30]} cxd6 {[%emt 0:00:30]} 47. Qe6 $2 {[%emt 0:00:30]} (47. Qe3 {was the only defense.} Kb7 (47... Qxd5 48. Qxb6+ Qb7 49. Qxa5 $14) (47... Rc5 48. Nf6 $11) 48. Nf6) 47... Rxc3 $2 {[%emt 0:00:30]} (47... Qf3 $19 48. Qxd6+ Kb7 49. Qe7+ Rc7) 48. Qxd6+ $2 {[%emt 0:00:30]} (48. Ne5 $1 $11 {and White stays safe.} Qd4 (48... dxe5 49. Qxb6+ Kc8 50. Qe6+ Kb7 51. Qa6+ Kb8 52. Qb6+ Kc8 53. Qa6+ Kd7 54. Qe6+ Kd8 55. Qf6+ Kc8 56. Qe6+ Kc7 57. Qxe5+ Kb6 58. Qf6+ Kxb5 59. Qxc3 $11) 49. Nc6+ Rxc6 50. bxc6 Qxf2+ 51. Kh1) 48... Kb7 $19 49. Ne5 $2 {[%emt 0:00:30]} (49. Qe7+ Rc7 50. Qe4) 49... Qd4 $19 {[%emt 0:01:00]} 50. Kg2 {[%emt 0:00:30]} (50. Ng4 $142) 50... Qe4+ $19 {[%emt 0:00:30]} 51. Kh2 {[%emt 0:00:30]} Qf4+ {[%emt 0:00:30]} 52. Kg2 a4 {[%emt 0:00:30]} 53. Qe6 {[%emt 0:01:00]} Qe4+ {[%emt 0:00:30]} 54. Kh2 {[%emt 0:00:30]} Rc7 {[%emt 0:00:30]} 55. Qd6 {[%emt 0:00:30]} Qf4+ {[%emt 0:00:30]} 56. Kg2 {[%emt 0:00:30]} a3 {[%emt 0:00:30]} 57. Qxa3 {[%emt 0:00:30]} Qxe5 {[%emt 0:00:30]} 58. Qa6+ {[%emt 0:00:30]} Kb8 {[%emt 0:00:30]} 59. Qxb6+ {[%emt 0:00:30]} Kc8 {[%emt 0:00:30]} 60. Qa6+ {[%emt 0:00:30]} Kd8 {[%emt 0:00:30]} 61. Qa8+ {[%emt 0:00:30]} Rc8 {[%emt 0:00:30]} 62. Qa5+ Kd7 {[%emt 0:00:30]} 63. b6 {[%emt 0:01:00]} Qe4+ {[%emt 0:00:30]} 64. Kh2 {[%emt 0:00:30]} Qf4+ {[%emt 0:00:30]} 65. Kg2 {[%emt 0:00:30]} Rg8+ {[%emt 0:00:30]} 66. Kf1 {[%emt 0:00:30]} Qc4+ {[%emt 0:00:30]} 67. Ke1 {[%emt 0:00:30]} Re8+ {[%emt 0:00:30]} 68. Kd1 {[%emt 0:00:30]} Qd3+ {[%emt 0:00:30]} 69. Kc1 {[%emt 0:00:30]} Rc8+ {[%emt 0:00:30]} 0-1

[Event "7th Sharjah Masters 2024"]
[Site "Sharjah"]
[Date "2024.05.19"]
[Round "6.10"]
[White "Nihal Sarin"]
[Black "Muradli, Mahammad"]
[Result "1/2-1/2"]
[ECO "B90"]
[WhiteElo "2680"]
[BlackElo "2561"]
[Annotator "TA"]
[PlyCount "66"]
[EventDate "2024.05.13"]
[EventType "swiss"]
[EventCountry "UAE"]
[SourceTitle "playchess.com"]
[Source "ChessBase"]
[SourceQuality "1"]
[TimeControl "5400+30"]

{[%evp 15,66,22,38,27,35,25,32,20,27,22,27,31,22,17,21,25,12,0,0,15,5,0,0,0,0,0,0,-31,25,0,0,0,0,0,0,0,0,0,0,0,0,0,0,0,0,0,0,0,0,0,0,0,0]} 1. e4 {[%emt 0:03:37]} c5 {[%emt 0:01:03]} 2. Nf3 {[%emt 0:00:14]} d6 {[%emt 0:00:06]} 3. d4 {[%emt 0:00:04]} cxd4 {[%emt 0:00:11]} 4. Nxd4 {[%emt 0:00:06]} Nf6 {[%emt 0:00:11]} 5. Nc3 {[%emt 0:00:05]} a6 {[%emt 0:00:08]} 6. Be3 {[%emt 0:00:11]} e5 {[%emt 0:00:17]} 7. Nb3 {[%emt 0:00:07]} Be6 {[%emt 0:00:06]} 8. f3 {[%emt 0:01:17]} h5 {[%emt 0:00:13]} 9. Nd5 {[%emt 0:00:38]} Bxd5 {[%emt 0:00:13]} 10. exd5 {[%emt 0:00:08]} Nbd7 {[%emt 0:00:17]} 11. Qd2 {[%emt 0:00:24] White is slightly better.} g6 {[%emt 0:00:20]} 12. O-O-O {[%emt 0:01:33]} Nb6 {[%emt 0:00:44]} 13. Kb1 {[%emt 0:00:46]} Nfxd5 {[%emt 0:00:55]} 14. Bg5 {[%emt 0:02:08]} (14. Bf2 {simplifies} Nf6 15. Bh4 Be7 16. Bxf6 Bxf6 17. Qxd6 Qxd6 18. Rxd6 Bd8 19. Rd2) 14... Be7 {[%emt 0:00:14]} 15. Bxe7 {[%emt 0:00:07]} Qxe7 {[%emt 0:00:07]} 16. Qa5 {[%emt 0:02:44]} (16. c4 {simplifies} Nf6 17. Qxd6 Qxd6 18. Rxd6 Nbd7 19. Be2) 16... Ne3 {[%emt 0:00:08]} 17. Qxb6 {[%emt 0:00:07]} Nxd1 {[%emt 0:00:07]} 18. Bc4 {[%emt 0:00:06]} Rc8 {[%emt 0:01:46] [#] Threatens to win with ...Nc3+.} 19. Bd5 {[%emt 0:00:07]} Nxb2 {[%emt 0:00:55]} 20. Kxb2 {[%emt 0:00:07]} Qc7 {[%emt 0:00:25]} 21. Qf2 {[%emt 0:00:05] Active counter play!} (21. Qxb7 Qc3+ (21... Qxc2+ 22. Ka3 $17) 22. Kb1 (22. Ka3 O-O $17) 22... Qxc2+ 23. Ka1 Qc3+ 24. Kb1 O-O $17) 21... a5 {[%emt 0:01:05]} (21... Qc3+ $15 22. Kc1 Rc7) 22. c4 {[%emt 0:01:19]} a4 {[%emt 0:07:06] The position is equal.} 23. Nd2 {[%emt 0:00:09] Black must now prevent Ne4.} b5 $1 {[%emt 0:01:15][%cal Rb5c4]} 24. Kc2 {[%emt 0:03:06] [#] Rb1 would now be deadly.} (24. cxb5 Qc3+ 25. Kb1 Qc2+ (25... Qd3+ 26. Ka1 $19) 26. Ka1 a3 (26... Qc3+ 27. Kb1 Qc2+ 28. Ka1 a3 29. Nc4 Qxf2 30. Nxa3 Qd4+ 31. Kb1 Qxd5 32. h3 Qd3+ 33. Kb2 Qc3+ 34. Kb1 Qxa3 35. g4 Qb4+ 36. Ka1 Rc2 37. Rb1 Qd4+ 38. Rb2 Qxb2#) 27. Nb1 Qxf2 28. Nxa3 Qd4+ (28... Qxg2 $2 29. Rd1 $19) 29. Kb1 Qxd5 30. h3 Qc5 (30... Qd3+ 31. Kb2 Qd4+ 32. Kb1 Qb4+ 33. Ka1 Qxa3 34. Kb1 Qb4+ 35. Ka1 Rc2 36. Rb1 Qd4+ 37. Rb2 Qxb2#) 31. Kb2 Qc3+ 32. Kb1 Qxa3 33. g3 Qd3+ (33... Qxf3 34. Re1 Qd3+ 35. Ka1 Qc3+ 36. Kb1 Qxe1+ 37. Kb2 Qc3+ 38. Kb1 Qc1#) 34. Ka1 Rc2 (34... Qxb5 35. Rb1 Qc5 36. Rb7 Qc3+ 37. Rb2 Rb8 38. h4 Qxb2#) 35. Rg1 Qd4+ 36. Kb1 Qb2#) 24... bxc4 {[%emt 0:02:52]} 25. Rb1 {[%emt 0:00:17][%cal Bh1b1,Bb1b7,Bb7c7][%mdl 32]} O-O {[%emt 0:03:25]} 26. Rb7 {[%emt 0:03:38]} Qa5 {[%emt 0:01:22]} 27. Ne4 $1 {[%emt 0:00:15]} Kg7 {[%emt 0:01:07] Prevents Nf6} 28. Bxf7 {[%emt 0:09:59][%cal Of2h4] aiming for Qh4!} Rc7 $1 {[%emt 0:12:16]} (28... Rxf7 29. Rxf7+ (29. Nxd6 $2 Rxb7 30. Nxb7 Qd5 $19) 29... Kxf7 30. Nxd6+ Kg8 31. Nxc8 $14) 29. Qh4 {[%emt 0:08:10] The board is on fire.} Rfxf7 {[%emt 0:05:48]} ({And not} 29... Rxb7 30. Qf6+ (30. Bxc4 $2 {too greedy.} Qb4 $19) 30... Kh7 31. Qxg6+ Kh8 32. Qh6#) 30. Qd8 {[%emt 0:00:48] White threatens Rb8 and mate.} Qd5 {[%emt 0:03:16]} 31. Rxc7 {[%emt 0:00:24]} Qd3+ {[%emt 0:00:05]} 32. Kc1 {[%emt 0:00:42] White wants to mate with Qf6+.} (32. Kb2 $5 a3+ $8 33. Kc1 Qf1+ 34. Kc2 Qd3+ 35. Kc1 Qf1+ 36. Kc2 Qd3+ 37. Kc1 $11) 32... Qf1+ {[%emt 0:00:22]} 33. Kc2 {[%emt 0:00:08] Qf6+ would kill now.} Qd3+ {[%emt 0:00:08] Weighted Error Value: White=0.04 (flawless) /Black=0.05 (flawless) .  Mistake:       	---       	Black=1      Inaccurate:     	White=1     	---        OK:         	White=9     	Black=16     Best:        	White=3     	Black=3      Strong:       	White=1     	Black=2} 1/2-1/2